fUSD/lending_fUSD_20260402
["ID","MTS","AMOUNT","RATE_DAILY","PERIOD"]
[419280481,1775107838087,-6224.59794478,0.00014695,2]
[419280482,1775107838142,-675935.59311474,0.00014695,2]
[419280483,1775107838152,-223.33620162,0.00014885,2]
[419280484,1775107838161,-369171.97962738,0.00014895,2]
[419280523,1775107840156,-689.72524371,0.00014895,2]
[419280524,1775107840168,-571092.59012891,0.00014895,2]
[419280525,1775107840178,-500.0,0.00014895,2]
[419280526,1775107840188,-4100.0,0.000149,5]
[419280527,1775107840198,-3000.0,0.00015082,2]
[419280528,1775107840208,-3240.0,0.00015082,2]
[419280529,1775107840217,-337.97256879,0.00015169,2]
[419280530,1775107840227,-10000.0,0.00015205,2]
[419280531,1775107840236,-546.7352399,0.000153,2]
[419280532,1775107840246,-335.72974511,0.000153,2]
[419280533,1775107840257,-785.32,0.00015351,2]
[419280534,1775107840267,-30000.0,0.00015357,2]
[419280535,1775107840276,-504.34724751,0.00015421,2]
[419280536,1775107840286,-4206.7751855,0.00015498,2]
[419280537,1775107840296,-2806.0,0.00015572,2]
[419280538,1775107840305,-219.43030367,0.00015598,2]
[419280539,1775107840315,-169.5587,0.000156,7]
[419280540,1775107840325,-785.32,0.00015625,2]
[419280541,1775107840335,-420.0,0.00015661,2]
[419280542,1775107840345,-326.59559359,0.00015676,2]
[419280543,1775107840355,-500.0,0.00015676,2]
[419280544,1775107840364,-500.0,0.00015676,2]
[419280545,1775107840753,-500.0,0.00015676,2]
[419280546,1775107840769,-500.0,0.00015676,2]
[419280547,1775107840779,-500.0,0.00015676,2]
[419280548,1775107840789,-500.0,0.00015676,2]
[419280549,1775107840801,-500.0,0.00015676,2]
[419280550,1775107840811,-500.0,0.00015676,2]
[419280551,1775107840820,-500.0,0.00015676,2]
[419280552,1775107840830,-577.18456749,0.00015676,2]
[419280553,1775107840840,-151.0,0.00015676,2]
[419280554,1775107840849,-500.0,0.00015676,2]
[419280555,1775107840858,-500.0,0.00015676,2]
[419280556,1775107840868,-500.0,0.00015676,2]
[419280557,1775107840877,-250.0,0.00015676,2]
[419280558,1775107840888,-500.0,0.00015676,2]
[419280559,1775107840898,-500.0,0.00015676,2]
[419280560,1775107840907,-250.0,0.00015676,2]
[419280561,1775107840917,-174.61919141,0.00015676,2]
[419280562,1775107840927,-250.0,0.00015676,2]
[419280563,1775107840937,-500.0,0.00015676,2]
[419280564,1775107840947,-500.0,0.00015676,2]
[419280565,1775107840957,-250.0,0.00015676,2]
[419280566,1775107840969,-250.0,0.00015676,2]
[419280567,1775107840978,-500.0,0.00015676,2]
[419280568,1775107840988,-500.0,0.00015676,2]
[419280569,1775107840998,-500.0,0.00015676,2]
[419280570,1775107841009,-500.0,0.00015676,2]
[419280572,1775107841018,-250.0,0.00015676,2]
[419280574,1775107841028,-250.0,0.00015676,2]
[419280576,1775107841038,-250.0,0.00015676,2]
[419280578,1775107841048,-250.0,0.00015676,2]
[419280580,1775107841058,-250.0,0.00015676,2]
[419280582,1775107841068,-170.0,0.00015676,2]
[419280584,1775107841077,-250.0,0.00015676,2]
[419280586,1775107841087,-170.0,0.00015676,2]
[419280588,1775107841096,-170.0,0.00015676,2]
[419280590,1775107841106,-170.0,0.00015676,2]
[419280592,1775107841115,-170.0,0.00015676,2]
[419280594,1775107841125,-170.0,0.00015676,2]
[419280596,1775107841134,-170.0,0.00015676,2]
[419280598,1775107841143,-170.0,0.00015676,2]
[419280600,1775107841152,-743.50770149,0.00015676,2]
[419280602,1775107841162,-211.4,0.000157,2]
[419280604,1775107841171,-211.4,0.000157,2]
[419280606,1775107841181,-211.4,0.000157,2]
[419280608,1775107841190,-500.0,0.00015731,2]
[419280610,1775107841200,-151.0,0.00015731,2]
[419280612,1775107841209,-500.0,0.00015753,2]
[419280614,1775107841219,-500.0,0.00015753,2]
[419280616,1775107841228,-500.0,0.00015753,2]
[419280617,1775107841238,-500.0,0.00015753,2]
[419280619,1775107841247,-500.0,0.00015753,2]
[419280621,1775107841258,-500.0,0.00015753,2]
[419280622,1775107841271,-500.0,0.00015753,2]
[419280623,1775107841281,-500.0,0.00015753,2]
[419280624,1775107841291,-500.0,0.00015753,2]
[419280625,1775107841300,-500.0,0.00015753,2]
[419280627,1775107841310,-500.0,0.00015753,2]
[419280629,1775107841320,-500.0,0.00015753,2]
[419280630,1775107841329,-500.0,0.00015753,2]
[419280631,1775107841339,-500.0,0.00015753,2]
[419280632,1775107841349,-500.0,0.00015753,2]
[419280633,1775107841358,-500.0,0.00015753,2]
[419280634,1775107841368,-500.0,0.00015753,2]
[419280635,1775107841377,-500.0,0.00015753,2]
[419280636,1775107841387,-500.0,0.00015753,2]
[419280637,1775107841396,-500.0,0.00015753,2]
[419280638,1775107841406,-500.0,0.00015753,2]
[419280639,1775107841416,-500.0,0.00015753,2]
[419280640,1775107841426,-500.0,0.00015753,2]
[419280641,1775107841436,-500.0,0.00015753,2]
[419280642,1775107841445,-500.0,0.00015753,2]
[419280643,1775107841455,-531.94,0.00015753,2]
[419280644,1775107841465,-500.0,0.00015753,2]
[419280645,1775107841475,-500.0,0.00015786,2]
[419280646,1775107841484,-151.0,0.00015786,2]
[419280647,1775107841495,-500.0,0.00015799,2]
[419280648,1775107841505,-500.0,0.00015799,3]
[419280649,1775107841515,-152.0,0.00015831,3]
[419280650,1775107841526,-500.0,0.00015841,2]
[419280651,1775107841535,-151.0,0.00015841,2]
[419280652,1775107841545,-500.0,0.0001589,2]
[419280653,1775107841556,-519.17533645,0.0001589,2]
[419280654,1775107841566,-500.0,0.00015896,2]
[419280655,1775107841575,-151.0,0.00015896,2]
[419280656,1775107841584,-787.64,0.00015899,2]
[419280657,1775107841595,-6100.0,0.000159,5]
[419280658,1775107841605,-255.0,0.00015918,2]
[419280659,1775107841617,-368.66635729,0.00015926,2]
[419280660,1775107841628,-500.0,0.00015951,2]
[419280661,1775107841638,-151.0,0.00015951,2]
[419280662,1775107841648,-818.4263034,0.00015967,2]
[419280663,1775107841657,-1655.7569103,0.00015967,2]
[419280664,1775107841667,-15170.195033,0.00015967,2]
[419280665,1775107841676,-170.6153057,0.00015967,2]
[419280666,1775107841686,-159988.6300983,0.00015967,2]
[419280667,1775107841696,-3252.5348009,0.00015967,2]
[419280668,1775107841707,-151.0,0.00015967,2]
[419280669,1775107841716,-151.0,0.00015967,2]
[419280670,1775107841726,-181.321456,0.00015967,2]
[419280671,1775107841736,-216.593968,0.00015967,2]
[419280672,1775107841749,-216.593968,0.00015967,2]
[419280673,1775107841759,-216.593968,0.00015967,2]
[419280674,1775107841769,-151.0,0.00015967,2]
[419280675,1775107841779,-216.593968,0.00015967,2]
[419280676,1775107841791,-151.0,0.00015967,2]
[419280677,1775107841801,-151.0,0.00015967,2]
[419280678,1775107841811,-151.0,0.00015967,2]
[419280679,1775107841822,-151.0,0.00015967,2]
[419280680,1775107841832,-577.911486,0.00015967,2]
[419280681,1775107841841,-577.911486,0.00015967,2]
[419280682,1775107841851,-577.911486,0.00015967,2]
[419280683,1775107841860,-577.911486,0.00015967,2]
[419280684,1775107841870,-400.0,0.0001597,2]
[419280685,1775107841880,-400.0,0.0001597,2]
[419280686,1775107841890,-500.70581269,0.0001597,2]
[419280687,1775107841899,-500.91934026,0.00015973,2]
[419280688,1775107841909,-181.83603731,0.00015973,2]
[419280689,1775107841919,-503.04138262,0.00015973,2]
[419280690,1775107841928,-418.42031113,0.00015973,2]
[419280691,1775107841938,-501.09616235,0.00015973,2]
[419280692,1775107841947,-429.00253572,0.00015973,2]
[419280693,1775107841957,-500.0,0.00015973,2]
[419280694,1775107841967,-500.0,0.00015973,2]
[419280695,1775107841976,-500.0,0.00015973,2]
[419280696,1775107841986,-629.87283673,0.00015973,2]
[419280697,1775107841996,-500.0,0.00015973,2]
[419280698,1775107842005,-500.0,0.00015973,2]
[419280699,1775107842015,-500.0,0.00015973,2]
[419280700,1775107842024,-196439.89840516,0.00016,2]
[419280701,1775107842035,-200.0,0.00016,2]
[419280702,1775107842044,-151.0,0.00016,2]
[419280703,1775107842054,-151.615039,0.00016,2]
[419280704,1775107842064,-151.0,0.00016,2]
[419280705,1775107842073,-151.615039,0.00016,2]
[419280706,1775107842083,-151.0,0.00016,2]
[419280707,1775107842092,-151.615039,0.00016,2]
[419280708,1775107842102,-151.615039,0.00016,2]
[419280709,1775107842112,-200.0,0.00016,2]
[419280710,1775107842121,-151.0,0.00016,2]
[419280711,1775107842131,-151.0,0.00016,2]
[419280712,1775107842141,-2000.0,0.00016,2]
[419280713,1775107842150,-216.593968,0.00016,2]
[419280714,1775107842160,-216.593968,0.00016,2]
[419280715,1775107842169,-216.593968,0.00016,2]
[419280716,1775107842179,-151.0,0.00016,2]
[419280717,1775107842189,-216.593968,0.00016,2]
[419280718,1775107842198,-197.584238,0.00016,2]
[419280719,1775107842208,-151.0,0.00016,2]
[419280720,1775107842218,-151.0,0.00016,2]
[419280721,1775107842227,-222.322204,0.00016,2]
[419280722,1775107842237,-577.911486,0.00016,2]
[419280723,1775107842246,-1000.0,0.00016,2]
[419280724,1775107842257,-1000.0,0.00016,2]
[419280725,1775107842267,-577.911486,0.00016,2]
[419280726,1775107842276,-882.60643401,0.00016,2]
[419280727,1775107842286,-577.911486,0.00016,2]
[419280728,1775107842295,-577.911486,0.00016,2]
[419280729,1775107842304,-288.09023334,0.00016,2]
[419280730,1775107842313,-162.0,0.00016,3]
[419280731,1775107842323,-154.0,0.00016,3]
[419280732,1775107842332,-500.0,0.00016006,2]
[419280733,1775107842341,-151.0,0.00016006,2]
[419280734,1775107842351,-176.77,0.00016038,2]
[419280735,1775107842360,-404.0,0.0001605,2]
[419280736,1775107842370,-500.0,0.00016061,2]
[419280737,1775107842380,-151.0,0.00016061,2]
[419280738,1775107842390,-738.0,0.000161,2]
[419280739,1775107842399,-266.059462,0.00016109,7]
[419280740,1775107842409,-361.920037,0.00016109,7]
[419280741,1775107842418,-193.138567,0.00016109,7]
[419280742,1775107842428,-500.0,0.00016116,2]
[419280743,1775107842437,-151.0,0.00016116,2]
[419280744,1775107842447,-404.0,0.00016124,2]
[419280745,1775107842456,-1571.0,0.00016132,2]
[419280746,1775107842465,-152.0,0.00016137,4]
[419280747,1775107842475,-2000.0,0.00016147,2]
[419280748,1775107842486,-404.0,0.00016148,2]
[419280749,1775107842495,-3029.0,0.00016151,5]
[419280750,1775107842505,-2429.0,0.00016151,5]
[419280751,1775107842515,-2701.0,0.00016151,5]
[419280752,1775107842524,-200.0,0.0001616,2]
[419280753,1775107842534,-200.0,0.0001616,2]
[419280754,1775107842544,-1263.0,0.00016163,2]
[419280755,1775107842554,-1217.0,0.00016163,2]
[419280756,1775107842563,-925.0,0.00016163,2]
[419280757,1775107842572,-6016.0,0.00016163,2]
[419280758,1775107842581,-1355.434,0.00016163,2]
[419280759,1775107842591,-500.0,0.00016164,2]
[419280760,1775107842600,-500.0,0.00016164,2]
[419280761,1775107842609,-500.0,0.00016164,2]
[419280762,1775107842618,-500.0,0.00016164,2]
[419280763,1775107842627,-150.0,0.00016164,2]
[419280764,1775107842636,-546.30390061,0.00016164,2]
[419280765,1775107842647,-150.0,0.00016164,2]
[419280766,1775107842657,-150.0,0.00016164,2]
[419280767,1775107842666,-150.0,0.00016164,2]
[419280768,1775107842675,-150.0,0.00016164,2]
[419280769,1775107842685,-250.0,0.00016164,2]
[419280770,1775107842695,-500.0,0.00016164,2]
[419280771,1775107842704,-500.0,0.00016164,2]
[419280772,1775107842713,-500.0,0.00016164,2]
[419280773,1775107842723,-500.0,0.00016164,2]
[419280774,1775107842732,-500.0,0.00016164,2]
[419280775,1775107842742,-500.0,0.00016164,2]
[419280776,1775107842751,-500.0,0.00016164,2]
[419280777,1775107842762,-500.0,0.00016164,2]
[419280778,1775107842771,-500.0,0.00016164,2]
[419280779,1775107842780,-500.0,0.00016164,2]
[419280780,1775107842790,-500.0,0.00016164,2]
[419280781,1775107842799,-500.0,0.00016164,2]
[419280782,1775107842808,-500.0,0.00016164,2]
[419280783,1775107842818,-500.0,0.00016164,2]
[419280784,1775107842828,-500.0,0.00016164,2]
[419280785,1775107842837,-500.0,0.00016164,2]
[419280786,1775107842847,-500.0,0.00016171,2]
[419280787,1775107842856,-151.0,0.00016171,2]
[419280788,1775107842866,-225.42759078,0.00016173,2]
[419280789,1775107842875,-1500.0,0.00016178,2]
[419280790,1775107842885,-9221.26883546,0.0001618,2]
[419280791,1775107842894,-1571.0,0.00016199,2]
[419280792,1775107842904,-181.08010149,0.00016224,2]
[419280794,1775107842913,-771.01748645,0.00016224,2]
[419280796,1775107842923,-500.0,0.00016226,2]
[419280797,1775107842932,-151.0,0.00016226,2]
[419280798,1775107842942,-404.0,0.0001624,2]
[419280799,1775107842951,-404.0,0.00016243,2]
[419280800,1775107842960,-500.0,0.00016246,2]
[419280801,1775107842969,-404.0,0.00016271,2]
[419280802,1775107842979,-161.0,0.00016298,2]
[419280803,1775107842988,-250.0,0.00016329,2]
[419280804,1775107842997,-150.0,0.000164,2]
[419280805,1775107843007,-307.98744808,0.000164,2]
[419280806,1775107843016,-2500.0,0.00016438,2]
[419280807,1775107843026,-2500.0,0.00016438,2]
[419280808,1775107843036,-2500.0,0.00016438,2]
[419280809,1775107843046,-2500.0,0.00016438,2]
[419280810,1775107843056,-2500.0,0.00016438,2]
[419280811,1775107843067,-2500.0,0.00016438,2]
[419280812,1775107843078,-2500.0,0.00016438,2]
[419280813,1775107843088,-150.0,0.00016438,2]
[419280814,1775107843098,-157.42,0.00016438,2]
[419280815,1775107843108,-250.0,0.00016438,2]
[419280816,1775107843117,-154.340058,0.00016438,2]
[419280817,1775107843127,-151.0,0.00016438,2]
[419280818,1775107843137,-151.0,0.00016438,2]
[419280819,1775107843147,-151.0,0.00016438,2]
[419280820,1775107843156,-151.0,0.00016438,2]
[419280821,1775107843166,-151.0,0.00016438,2]
[419280822,1775107843175,-151.0,0.00016438,2]
[419280823,1775107843185,-152.0,0.00016442,5]
[419280824,1775107843196,-404.0,0.00016445,2]
[419280825,1775107843206,-3000.0,0.00016452,7]
[419280826,1775107843215,-404.0,0.00016479,2]
[419280827,1775107843225,-404.0,0.00016487,2]
[419280828,1775107843234,-500.0,0.00016521,2]
[419280829,1775107843244,-1000.0,0.00016521,2]
[419280830,1775107843253,-1000.0,0.00016521,2]
[419280831,1775107843263,-500.0,0.00016521,2]
[419280832,1775107843272,-1000.0,0.00016521,2]
[419280833,1775107843282,-161.11,0.00016521,2]
[419280834,1775107843292,-176.77,0.00016555,2]
[419280835,1775107843301,-404.0,0.00016643,2]
[419280836,1775107843311,-404.0,0.00016666,2]
[419280837,1775107843321,-2000.0,0.000167,2]
[419280838,1775107843330,-404.0,0.00016718,2]
[419280839,1775107843340,-743.13,0.00016737,2]
[419280840,1775107843350,-150.0,0.00016745,30]
[419280841,1775107843359,-152.0,0.00016747,6]
[419280842,1775107843369,-239.75176,0.00016753,2]
[419280843,1775107843378,-404.0,0.00016765,2]
[419280844,1775107843387,-400.0,0.0001677,2]
[419280845,1775107843397,-530.89693021,0.0001677,2]
[419280846,1775107843407,-737.45123836,0.00016772,2]
[419280847,1775107843418,-162.0,0.000168,2]
[419280848,1775107843427,-191.6678,0.000168,12]
[419280849,1775107843437,-738.0,0.00016841,2]
[419280850,1775107843446,-404.0,0.00016849,2]
[419280851,1775107843456,-404.0,0.00016876,2]
[419280852,1775107843466,-159.0,0.00016883,2]
[419280853,1775107843475,-738.0,0.00016889,2]
[419280854,1775107843485,-8200.0,0.000169,6]
[419280855,1775107843495,-404.0,0.00016913,2]
[419280856,1775107843505,-164.509107,0.00016915,7]
[419280857,1775107843515,-239.75177,0.00016953,2]
[419280858,1775107843525,-400.0,0.0001697,2]
[419280859,1775107843535,-400.0,0.0001697,2]
[419280860,1775107843544,-500.0,0.00016999,2]
[419280861,1775107843554,-500.0,0.00016999,2]
[419280862,1775107843565,-500.0,0.00016999,2]
[419280863,1775107843575,-500.0,0.00016999,2]
[419280864,1775107843584,-155.0,0.00016999,2]
[419280865,1775107843594,-300.0,0.00016999,2]
[419280866,1775107843604,-300.0,0.00016999,2]
[419280867,1775107843613,-300.0,0.00016999,2]
[419280868,1775107843624,-300.0,0.00016999,2]
[419280869,1775107843634,-2500.0,0.00016999,2]
[419280870,1775107843643,-2500.0,0.00016999,2]
[419280871,1775107843653,-300.0,0.00016999,2]
[419280872,1775107843663,-260518.401762,0.00017,2]
[419280874,1775107843672,-161749.17676644,0.00017,2]
[419280876,1775107843682,-153.61229,0.00017,2]
[419280878,1775107843692,-151.615039,0.00017,2]
[419280880,1775107843702,-151.615039,0.00017,2]
[419280882,1775107843711,-151.0,0.00017,2]
[419280884,1775107843720,-151.0,0.00017,2]
[419280886,1775107843730,-151.615039,0.00017,2]
[419280888,1775107843739,-202.061243,0.00017,2]
[419280890,1775107843748,-151.615039,0.00017,2]
[419280892,1775107843758,-151.615039,0.00017,2]
[419280894,1775107843767,-151.615039,0.00017,2]
[419280896,1775107843777,-151.615039,0.00017,2]
[419280898,1775107843786,-151.615039,0.00017,2]
[419280900,1775107843796,-151.0,0.00017,2]
[419280902,1775107843805,-151.0,0.00017,2]
[419280904,1775107843815,-151.0,0.00017,2]
[419280905,1775107843825,-151.0,0.00017,2]
[419280908,1775107843835,-151.0,0.00017,2]
[419280909,1775107843844,-2000.0,0.00017,2]
[419280911,1775107843853,-216.593968,0.00017,2]
[419280913,1775107843862,-216.593968,0.00017,2]
[419280915,1775107843873,-216.593968,0.00017,2]
[419280917,1775107843883,-216.593968,0.00017,2]
[419280919,1775107843893,-216.593968,0.00017,2]
[419280921,1775107843902,-216.593968,0.00017,2]
[419280923,1775107843912,-151.0,0.00017,2]
[419280925,1775107843922,-216.593968,0.00017,2]
[419280927,1775107843932,-151.0,0.00017,2]
[419280929,1775107843942,-216.593968,0.00017,2]
[419280931,1775107843951,-153.537546,0.00017,2]
[419280932,1775107843961,-151.0,0.00017,2]
[419280933,1775107843971,-151.0,0.00017,2]
[419280934,1775107843981,-151.0,0.00017,2]
[419280935,1775107843991,-151.0,0.00017,2]
[419280936,1775107844000,-151.0,0.00017,2]
[419280937,1775107844010,-151.0,0.00017,2]
[419280938,1775107844020,-577.911486,0.00017,2]
[419280939,1775107844030,-577.911486,0.00017,2]
[419280940,1775107844040,-577.911486,0.00017,2]
[419280941,1775107844051,-577.911486,0.00017,2]
[419280942,1775107844060,-577.911486,0.00017,2]
[419280943,1775107844070,-577.911486,0.00017,2]
[419280944,1775107844079,-577.911486,0.00017,2]
[419280945,1775107844089,-577.911486,0.00017,2]
[419280946,1775107844099,-152.0,0.00017052,7]
[419280947,1775107844108,-744.6131476,0.00017068,2]
[419280948,1775107844117,-1001.40120114,0.00017068,2]
[419280949,1775107844127,-176.77,0.00017073,2]
[419280950,1775107844136,-404.0,0.00017093,2]
[419280951,1775107844150,-404.0,0.00017106,2]
[419280952,1775107844161,-2809.0,0.0001712,2]
[419280953,1775107844171,-239.75176,0.00017153,2]
[419280954,1775107844181,-404.0,0.00017192,2]
[419280955,1775107844191,-404.0,0.00017273,2]
[419280956,1775107844200,-404.0,0.00017298,2]
[419280957,1775107844210,-1583.45,0.00017332,2]
[419280958,1775107844219,-404.0,0.00017346,2]
[419280959,1775107844228,-239.75177,0.00017353,2]
[419280960,1775107844238,-152.0,0.00017358,8]
[419280961,1775107844247,-510.35,0.00017424,2]
[419280962,1775107844256,-1229.62,0.00017424,2]
[419280963,1775107844266,-350.0,0.00017428,2]
[419280964,1775107844275,-2809.0,0.00017454,2]
[419280965,1775107844284,-743.13,0.00017534,2]
[419280966,1775107844294,-1500.0,0.00017548,7]
[419280967,1775107844304,-3000.0,0.00017548,7]
[419280968,1775107844313,-239.75176,0.00017553,2]
[419280969,1775107844323,-152.0,0.00017663,9]
[419280970,1775107844333,-8080.80861012,0.00017696,2]
[419280971,1775107844342,-2160.04836291,0.00017696,2]
[419280972,1775107844352,-163.49543567,0.00017742,2]
[419280973,1775107844363,-239.75177,0.00017753,2]
[419280974,1775107844373,-154.0,0.00017813,3]
[419280975,1775107844382,-2741.01519259,0.0001789,2]
[419280976,1775107844391,-214.36442557,0.0001789,2]
[419280977,1775107844401,-2000.0,0.00017941,2]
[419280978,1775107844411,-152.0,0.00017968,10]
[419280979,1775107844420,-300.0,0.00017989,2]
[419280980,1775107844429,-3384.9280472,0.0001799,2]
[419280981,1775107844439,-35698.2886557,0.0001799,2]
[419280982,1775107844448,-725.738611,0.0001799,2]
[419280983,1775107844457,-216.6598,0.00018,17]
[419280984,1775107844469,-200.448128,0.00018,2]
[419280985,1775107844480,-15732.64109117,0.0001808,2]
[419280986,1775107844490,-2809.0,0.0001818,2]
[419280987,1775107844499,-382.0,0.0001818,2]
[419280988,1775107844509,-7048.71,0.00018244,2]
[419280989,1775107844519,-3724.98,0.00018244,2]
[419280990,1775107844528,-596.61,0.00018244,2]
[419280991,1775107844537,-714.61,0.00018244,2]
[419280992,1775107844546,-299.0,0.00018249,6]
[419280993,1775107844556,-152.0,0.00018274,11]
[419280994,1775107844565,-743.13,0.00018331,2]
[419280995,1775107844575,-755.2795372,0.00018441,2]
[419280996,1775107844584,-7965.3648647,0.00018441,2]
[419280997,1775107844594,-161.9341725,0.00018441,2]
[419280998,1775107844604,-164.68,0.00018532,2]
[419280999,1775107844614,-150.0,0.00018539,30]
[419281000,1775107844623,-152.0,0.00018579,12]
[419281001,1775107844632,-1500.0,0.00018644,7]
[419281002,1775107844642,-3000.0,0.00018644,7]
[419281003,1775107844651,-428.45,0.00018687,2]
[419281004,1775107844661,-155.0,0.00018699,2]
[419281005,1775107844672,-161.11,0.00018881,2]
[419281006,1775107844682,-152.0,0.00018884,13]
[419281007,1775107844692,-1980.0,0.00019035,5]
[419281008,1775107844704,-151.0,0.00019035,2]
[419281009,1775107844716,-577.911486,0.00019035,2]
[419281010,1775107844727,-577.911486,0.00019035,2]
[419281011,1775107844739,-577.911486,0.00019035,2]
[419281012,1775107844750,-577.911482,0.00019035,2]
[419281013,1775107844761,-216.593968,0.00019063,2]
[419281014,1775107844771,-216.593968,0.00019063,2]
[419281015,1775107844781,-216.593968,0.00019063,2]
[419281016,1775107844791,-151.0,0.00019063,2]
[419281017,1775107844800,-216.59396,0.00019063,2]
[419281018,1775107844813,-743.13,0.00019128,2]
[419281019,1775107844824,-151.0,0.00019163,2]
[419281020,1775107844834,-151.0,0.00019163,2]
[419281021,1775107844848,-151.0,0.00019163,2]
[419281022,1775107844859,-1263.0,0.00019163,2]
[419281023,1775107844868,-1217.0,0.00019163,2]
[419281024,1775107844878,-925.0,0.00019163,2]
[419281025,1775107844887,-6016.0,0.00019163,2]
[419281026,1775107844896,-1346.0,0.00019163,2]
[419281027,1775107844907,-300.0,0.00019177,2]
[419281028,1775107844916,-300.0,0.00019177,2]
[419281029,1775107844926,-300.0,0.00019177,2]
[419281030,1775107844935,-300.0,0.00019177,2]
[419281031,1775107844944,-300.0,0.00019177,2]
[419281032,1775107844954,-151.615039,0.00019178,2]
[419281033,1775107844963,-151.0,0.00019178,2]
[419281034,1775107844972,-151.615039,0.00019178,2]
[419281035,1775107844982,-151.615039,0.00019178,2]
[419281036,1775107844992,-151.615039,0.00019178,2]
[419281037,1775107845001,-20299.17,0.00019178,2]
[419281038,1775107845012,-151.0,0.00019178,2]
[419281039,1775107845022,-151.0,0.00019178,2]
[419281040,1775107845031,-151.0,0.00019178,2]
[419281041,1775107845041,-151.0,0.00019178,2]
[419281042,1775107845051,-151.0,0.00019178,2]
[419281043,1775107845060,-153.755163,0.00019178,2]
[419281044,1775107845070,-151.0,0.00019178,2]
[419281045,1775107845079,-151.0,0.00019178,2]
[419281046,1775107845089,-151.0,0.00019178,2]
[419281047,1775107845099,-151.0,0.00019178,2]
[419281048,1775107845108,-151.0,0.00019178,2]
[419281049,1775107845118,-151.0,0.00019178,2]
[419281050,1775107845127,-151.0,0.00019178,2]
[419281051,1775107845136,-151.0,0.00019178,2]
[419281052,1775107845146,-151.0,0.00019178,2]
[419281053,1775107845155,-151.0,0.00019178,2]
[419281054,1775107845164,-151.0,0.00019178,2]
[419281055,1775107845174,-151.0,0.00019178,2]
[419281056,1775107845183,-263.953404,0.00019178,2]
[419281057,1775107845193,-6078.056687,0.00019178,2]
[419281058,1775107845202,-6078.056687,0.00019178,2]
[419281059,1775107845212,-6078.056687,0.00019178,2]
[419281060,1775107845222,-6078.056687,0.00019178,2]
[419281061,1775107845232,-6078.056687,0.00019178,2]
[419281062,1775107845241,-6078.056687,0.00019178,2]
[419281063,1775107845250,-6078.056687,0.00019178,2]
[419281064,1775107845260,-6078.056687,0.00019178,2]
[419281065,1775107845270,-6078.056687,0.00019178,2]
[419281066,1775107845280,-6078.056687,0.00019178,2]
[419281067,1775107845290,-6078.056687,0.00019178,2]
[419281068,1775107845299,-6078.056687,0.00019178,2]
[419281069,1775107845309,-6078.056687,0.00019178,2]
[419281070,1775107845319,-6078.056687,0.00019178,2]
[419281071,1775107845328,-6078.056687,0.00019178,2]
[419281072,1775107845338,-6078.056687,0.00019178,2]
[419281073,1775107845347,-6078.056687,0.00019178,2]
[419281074,1775107845356,-6078.056687,0.00019178,2]
[419281075,1775107845366,-6078.056687,0.00019178,2]
[419281076,1775107845375,-6078.056679,0.00019178,2]